bitfinex/quotes_BTCUSD_20241124
["timestamp","ask_amount","ask_price","bid_price","bid_amount"]
[1732481586453,0.31533986,96631.0,96630.0,0.07244119]
[1732481587118,0.31533986,96631.0,96630.0,0.25616822]
[1732481587344,0.3112966,96631.0,96630.0,0.25616822]
[1732481587558,0.31533986,96631.0,96630.0,0.07244119]
[1732481588728,0.31533986,96631.0,96630.0,0.30169967]
[1732481589185,0.31533986,96631.0,96630.0,0.30222796]
[1732481589631,0.31533986,96631.0,96630.0,0.07244119]
[1732481590455,0.3112966,96631.0,96630.0,0.34818531]
[1732481590678,0.3112966,96631.0,96630.0,0.07244119]
[1732481593690,0.31534364,96631.0,96630.0,0.3482112]
[1732481593896,0.31534364,96631.0,96630.0,0.07244119]
[1732481594315,0.31534364,96631.0,96630.0,0.348232]
[1732481594746,0.31534364,96631.0,96630.0,0.07244119]
[1732481594980,0.31534364,96631.0,96630.0,0.34826174]
[1732481596974,0.31534364,96631.0,96630.0,0.07244119]
[1732481597924,0.31534364,96631.0,96630.0,0.34828462]
[1732481599022,0.31534364,96631.0,96630.0,0.07244119]
[1732481599477,0.31534364,96631.0,96630.0,0.3483559]
[1732481600602,0.31534364,96631.0,96630.0,0.07244119]
[1732481600807,0.31534364,96631.0,96630.0,0.3483908]
[1732481601934,0.31534364,96631.0,96630.0,0.34839825]
[1732481602783,0.31534364,96631.0,96630.0,0.07244119]
[1732481609851,0.43774364,96631.0,96630.0,1.9e-07]
[1732481611568,0.4336966,96631.0,96630.0,1.9e-07]
[1732481611770,0.43774411,96631.0,96630.0,0.07244119]
[1732481614032,0.39034411,96631.0,96630.0,0.07244119]
[1732481615361,0.31534411,96631.0,96630.0,0.07244119]
[1732481620063,0.31534411,96631.0,96630.0,0.12234119]
[1732481620299,0.3112966,96631.0,96630.0,0.66146384]
[1732481620584,0.3112966,96631.0,96630.0,0.25377305]
[1732481620813,0.315344,96631.0,96630.0,0.25377305]
[1732481621037,0.31524178,96631.0,96630.0,0.25377305]
[1732481622379,0.31524178,96631.0,96630.0,0.66153516]
[1732481622590,0.31524178,96631.0,96630.0,0.25377305]
[1732481623276,0.31524178,96631.0,96630.0,0.22435546]
[1732481623480,0.3112966,96631.0,96630.0,0.25377122]
[1732481623691,0.31511217,96631.0,96630.0,0.25377122]
[1732481624353,0.31511217,96631.0,96630.0,0.22435546]
[1732481624990,0.31511217,96631.0,96630.0,0.2537734]
[1732481625203,0.31511217,96631.0,96630.0,0.22435546]
[1732481625651,0.31511217,96631.0,96630.0,0.25377335]
[1732481625875,0.31511217,96631.0,96630.0,0.22435546]
[1732481626331,0.31511217,96631.0,96630.0,0.25377331]
[1732481626559,0.31511217,96631.0,96630.0,0.22435546]
[1732481626795,0.31511217,96631.0,96630.0,0.25377255]
[1732481627434,0.31511217,96631.0,96630.0,0.22435546]
[1732481628310,0.31511217,96631.0,96630.0,0.25377327]
[1732481628538,0.31511217,96631.0,96630.0,0.22435546]
[1732481629164,0.31511217,96631.0,96630.0,0.25377274]
[1732481629374,0.31511217,96631.0,96630.0,0.22435546]
[1732481630005,0.31511217,96631.0,96630.0,0.25377262]
[1732481630431,0.31511217,96631.0,96630.0,0.22435546]
[1732481630687,0.31511217,96631.0,96630.0,0.25377217]
[1732481630907,0.31511217,96631.0,96630.0,0.22435546]
[1732481631462,0.31511217,96631.0,96630.0,0.25377201]
[1732481632200,0.31511217,96631.0,96630.0,0.22435546]
[1732481634131,0.31511217,96631.0,96630.0,0.66149044]
[1732481635011,0.31511217,96631.0,96630.0,0.81149044]
[1732481635237,0.31511217,96631.0,96630.0,0.40377497]
[1732481635692,0.31511217,96631.0,96630.0,0.35387497]
[1732481636018,0.31511217,96631.0,96630.0,0.76164785]
[1732481637191,0.31511217,96631.0,96630.0,0.35387497]
[1732481637432,0.31511217,96631.0,96630.0,0.76163856]
[1732481637894,0.31511217,96631.0,96630.0,0.35387497]
[1732481638118,0.31511217,96631.0,96630.0,0.76165004]
[1732481638815,0.31511217,96631.0,96630.0,0.35387497]
[1732481639495,0.31511217,96631.0,96630.0,0.7616306]
[1732481639739,0.31511217,96631.0,96630.0,0.35387497]
[1732481644440,0.31511217,96631.0,96630.0,0.76156401]
[1732481644665,0.31511217,96631.0,96630.0,0.35387497]
[1732481644879,0.31511217,96631.0,96630.0,0.7615523]
[1732481645545,0.31511217,96631.0,96630.0,0.65953803]
[1732481645781,0.36341217,96631.0,96630.0,0.22244119]
[1732481645994,0.36341217,96631.0,96630.0,0.07244119]
[1732481645995,0.4392966,96631.0,96630.0,0.07244119]
[1732481646253,0.44311539,96631.0,96630.0,0.07244119]
[1732481649334,0.44311539,96631.0,96630.0,0.2518612]
[1732481650004,0.44311539,96631.0,96630.0,0.22244119]
[1732481650642,0.44311539,96631.0,96630.0,0.07244119]
[1732481651580,0.44311539,96631.0,96630.0,0.25186351]
[1732481653333,0.31511539,96631.0,96630.0,0.25186351]
[1732481663537,0.31511539,96631.0,96630.0,0.65949416]
[1732481663963,0.3112966,96631.0,96630.0,0.25186351]
[1732481664386,0.3112966,96631.0,96630.0,0.65949416]
[1732481665544,0.3112966,96631.0,96630.0,0.25186351]
[1732481667569,0.31511229,96631.0,96630.0,0.25186351]
[1732481668673,0.31518576,96631.0,96630.0,0.25186351]
[1732481680418,0.31518576,96631.0,96630.0,0.65977229]
[1732481680642,0.31518576,96631.0,96630.0,0.25186351]
[1732481690243,0.31518576,96631.0,96630.0,0.65980246]
[1732481690428,0.31518576,96631.0,96630.0,0.25186351]
[1732481691480,0.31518576,96631.0,96630.0,0.39957778]
[1732481691687,0.31518576,96631.0,96630.0,0.58467778]
[1732481692307,0.31518576,96631.0,96630.0,0.89548841]
[1732481692527,0.31518576,96631.0,96630.0,0.58467778]
[1732481694260,0.31137007,96631.0,96630.0,0.58467778]
[1732481694680,0.31505346,96631.0,96630.0,0.58467778]
[1732481702874,0.31505346,96631.0,96630.0,0.50817778]
[1732481703307,0.31137007,96631.0,96630.0,0.50817778]
[1732481703520,0.31478912,96631.0,96630.0,0.50817778]
[1732481704003,0.31478912,96631.0,96630.0,0.46247778]
[1732481710256,0.31478912,96631.0,96630.0,0.51017778]
[1732481710719,0.31109739,96631.0,96630.0,0.51017778]
[1732481711148,0.31478799,96631.0,96630.0,0.51017778]
[1732481711659,0.31478799,96631.0,96630.0,0.40157778]
[1732481713254,0.00462067,96631.0,96630.0,1.40054973]
[1732481713503,0.00462067,96631.0,96630.0,0.99397778]
[1732481713504,0.0009259,96631.0,96630.0,0.99397778]
[1732481713734,0.0008565,96645.0,96644.0,0.07243]
[1732481713949,0.0008565,96645.0,96644.0,0.60078975]
[1732481714163,0.0008565,96645.0,96644.0,0.59975521]
[1732481714633,0.0008565,96645.0,96644.0,0.32444427]
[1732481714857,0.0008565,96645.0,96644.0,0.52444427]
[1732481715087,0.0008565,96645.0,96644.0,0.66437072]
[1732481715301,0.0008565,96652.0,96651.0,0.002]
[1732481715548,0.0008565,96652.0,96651.0,0.32643927]
[1732481716912,0.0008565,96652.0,96651.0,0.32443927]
[1732481717135,0.0008565,96652.0,96651.0,0.32643927]
[1732481718703,0.0008565,96652.0,96651.0,0.60144281]
[1732481718944,0.0008565,96652.0,96651.0,0.60144588]
[1732481719155,0.0008565,96652.0,96651.0,0.32643927]
[1732481719422,0.0008565,96652.0,96651.0,0.60140916]
[1732481719835,0.0008565,96652.0,96651.0,0.32643927]
[1732481720047,0.0786,96666.0,96658.0,0.07242]
[1732481720261,0.0786,96666.0,96658.0,0.17443427]
[1732481720474,0.0786,96666.0,96658.0,0.32443427]
[1732481722229,0.0786,96666.0,96658.0,0.35808859]
[1732481723581,0.0786,96666.0,96658.0,0.63305848]
[1732481724019,0.0773,96673.0,96658.0,0.35808859]
[1732481724239,0.0781567,96680.0,96658.0,0.43428859]
[1732481724678,0.0781567,96680.0,96658.0,0.46360199]
[1732481724859,0.0781567,96680.0,96661.0,0.072418]
[1732481725066,0.0781567,96680.0,96661.0,0.32443227]
[1732481725728,0.0781567,96680.0,96661.0,0.35010227]
[1732481726589,0.0781567,96680.0,96661.0,0.45870227]
[1732481726805,0.0781567,96680.0,96661.0,0.4880147]
[1732481727225,0.0781567,96680.0,96661.0,0.6900147]
[1732481727434,0.0008567,96680.0,96661.0,0.7370147]
[1732481727649,0.0008567,96680.0,96661.0,1.14352851]
[1732481727874,0.0008567,96680.0,96661.0,0.7370147]
[1732481728534,0.02258783,96663.0,96662.0,0.533017]
[1732481728752,0.02258783,96663.0,96662.0,0.6643437]
[1732481729802,0.02258783,96663.0,96662.0,0.5557437]
[1732481730267,0.0008567,96680.0,96664.0,0.274415]
[1732481730471,0.0008567,96680.0,96678.0,0.072405]
[1732481730737,0.0008567,96680.0,96678.0,0.32545341]
[1732481730948,0.0008567,96680.0,96678.0,0.32441927]
[1732481731380,0.0008567,96680.0,96678.0,0.52441927]
[1732481733384,0.0008567,96680.0,96678.0,0.52641927]
[1732481734239,0.0008567,96680.0,96678.0,0.56022262]
[1732481734494,0.0008567,96680.0,96678.0,0.60722262]
[1732481734755,0.0008567,96680.0,96678.0,0.68312262]
[1732481734971,0.0008567,96680.0,96678.0,0.91235603]
[1732481735218,0.0008567,96680.0,96678.0,0.93573088]
[1732481735438,0.0008568,96690.0,96689.0,0.422397]
[1732481735649,1e-07,96690.0,96689.0,0.52441127]
[1732481735863,1e-07,96690.0,96689.0,0.55170279]
[1732481736081,1e-07,96690.0,96689.0,0.55198895]
[1732481736306,1e-07,96690.0,96689.0,0.52641127]
[1732481736562,1e-07,96690.0,96689.0,0.85121064]
[1732481736767,1e-07,96690.0,96689.0,0.64921064]
[1732481737223,1e-07,96690.0,96689.0,0.37528047]
[1732481737429,1e-07,96690.0,96689.0,0.32441127]
[1732481737645,1e-07,96690.0,96689.0,0.35808295]
[1732481739519,0.0823,96701.0,96690.0,0.222396]
[1732481739749,0.0823,96701.0,96690.0,0.32441027]
[1732481741363,0.0256705,96704.0,96690.0,0.64741027]
[1732481741591,0.0256705,96704.0,96690.0,0.84741027]
[1732481742062,0.0256705,96704.0,96698.0,0.2]
[1732481742314,0.0256705,96704.0,96698.0,0.52440427]
[1732481742580,0.03340882,96699.0,96698.0,0.70671596]
[1732481742787,0.02993,96699.0,96698.0,0.52440427]
[1732481743212,0.02993,96699.0,96698.0,0.17440427]
[1732481743850,0.03340145,96699.0,96698.0,0.17440427]
[1732481744468,0.03340145,96699.0,96698.0,0.32440427]
[1732481754826,0.03425785,96699.0,96698.0,0.32440427]
[1732481756828,0.0307864,96699.0,96698.0,0.32440427]
[1732481759519,0.0307864,96699.0,96698.0,0.46137035]
[1732481759744,0.0307864,96699.0,96698.0,0.46136983]
[1732481760206,0.0307864,96699.0,96698.0,0.35935556]
[1732481760442,0.0794864,96699.0,96698.0,0.2093884]
[1732481760668,0.1570864,96699.0,96698.0,0.22239]
[1732481760886,0.16055818,96699.0,96698.0,0.22239]
[1732481761991,0.1570864,96699.0,96698.0,0.22239]
[1732481762434,0.1570864,96699.0,96698.0,0.3593884]
[1732481763583,0.1570864,96699.0,96698.0,0.22239]
[1732481764051,0.16055727,96699.0,96698.0,0.40501075]
[1732481764313,0.16055727,96699.0,96698.0,0.22239]
[1732481764568,0.11185727,96699.0,96698.0,0.45066594]
[1732481764800,0.11185727,96699.0,96698.0,0.22239]
[1732481765769,0.11185727,96699.0,96698.0,0.25171961]
[1732481766265,0.03425727,96699.0,96698.0,0.35373388]
[1732481766743,0.03425727,96699.0,96698.0,0.42484797]
[1732481766958,0.0307864,96699.0,96698.0,0.45054525]
[1732481767186,0.0292864,96699.0,96698.0,0.45054525]
[1732481768339,0.0292864,96699.0,96698.0,0.40183388]
[1732481768571,0.0292864,96699.0,96698.0,0.44956751]
[1732481769683,0.0292864,96699.0,96698.0,0.40183388]
[1732481770124,0.0292864,96699.0,96698.0,0.44956751]
[1732481770351,0.0292864,96699.0,96698.0,0.85472408]
[1732481771474,0.0292864,96699.0,96698.0,0.44956751]
[1732481771905,0.0292864,96699.0,96698.0,0.85494082]
[1732481772394,0.0292864,96699.0,96698.0,0.44956751]
[1732481773563,0.0292864,96699.0,96698.0,0.35373388]
[1732481774250,0.0292864,96699.0,96698.0,0.39967604]
[1732481776235,0.0292864,96699.0,96698.0,0.37943116]
[1732481776453,0.0292864,96699.0,96698.0,0.39967604]
[1732481777353,0.0292864,96699.0,96698.0,0.35373388]
[1732481777607,0.0292864,96699.0,96698.0,0.40136462]
[1732481778516,0.0292864,96699.0,96698.0,0.35373388]
[1732481778959,0.0292864,96699.0,96698.0,0.37131083]
[1732481779893,0.0292864,96699.0,96698.0,0.39869669]
[1732481781722,0.0292864,96699.0,96698.0,0.37131083]
[1732481782131,0.0292864,96699.0,96698.0,0.35373388]
[1732481784908,0.0292864,96699.0,96698.0,0.37857272]
[1732481785124,0.0292864,96699.0,96698.0,0.40641328]
[1732481786047,0.0292864,96699.0,96698.0,0.35373388]
[1732481788382,0.0757864,96699.0,96698.0,0.35373388]
[1732481788625,0.07962592,96699.0,96698.0,0.35373388]
[1732481789996,0.03312592,96699.0,96698.0,0.35373388]
[1732481790216,0.03312592,96699.0,96698.0,0.35544608]
[1732481799935,0.15832592,96699.0,96698.0,0.25343181]
[1732481800410,0.15832592,96699.0,96698.0,0.65952825]
[1732481801577,0.15832592,96699.0,96698.0,0.65953696]
[1732481801804,0.15832592,96699.0,96698.0,0.25343181]
[1732481802464,0.15832592,96699.0,96698.0,0.65950243]
[1732481803612,0.15832592,96699.0,96698.0,0.65949169]
[1732481806235,0.11222592,96699.0,96698.0,0.25343181]
[1732481806477,0.03312592,96699.0,96698.0,0.35544608]
[1732481811363,0.0292864,96699.0,96698.0,0.35544608]
[1732481812547,0.0292864,96699.0,96698.0,0.37093066]
[1732481812778,0.0292864,96699.0,96698.0,0.38549286]
[1732481813040,0.0292864,96699.0,96698.0,0.41133342]
[1732481813976,0.0292864,96699.0,96698.0,0.35544608]
[1732481814426,0.0292864,96699.0,96698.0,0.41133342]
[1732481816080,0.0292864,96699.0,96698.0,0.38328664]
[1732481816307,0.0292864,96699.0,96698.0,0.35544608]
[1732481816530,0.0292864,96699.0,96698.0,0.38628664]
[1732481817960,0.0292864,96699.0,96698.0,0.35544608]
[1732481837638,0.0292864,96699.0,96698.0,0.37844608]
[1732481837887,0.0292864,96699.0,96698.0,0.42714608]
[1732481839500,0.0292864,96699.0,96698.0,0.37844608]
[1732481841367,0.0292864,96699.0,96698.0,0.42714608]
[1732481842243,0.0292864,96699.0,96698.0,0.45798777]
[1732481844306,0.0292864,96699.0,96698.0,0.42714608]
[1732481845640,0.0292864,96699.0,96698.0,0.37844608]
[1732481855608,0.0286784,96699.0,96698.0,0.37844608]
[1732481858514,0.0286784,96699.0,96698.0,0.40947356]
[1732481859646,0.0286784,96699.0,96698.0,0.71924894]
[1732481860778,0.0286784,96699.0,96698.0,0.37844608]
[1732481866465,0.0286784,96699.0,96698.0,0.40947356]
[1732481868941,0.0286784,96699.0,96698.0,0.37844608]
[1732481869653,0.0286784,96699.0,96698.0,0.40947356]
[1732481872516,0.0286784,96699.0,96698.0,0.37844608]
[1732481873657,0.0286784,96699.0,96698.0,0.40947356]
[1732481873866,0.0052559,96715.0,96714.0,0.072378]
[1732481880471,0.0052559,96715.0,96714.0,0.10543737]
[1732481880676,0.0052559,96715.0,96714.0,0.25543737]
[1732481880888,0.0052559,96715.0,96714.0,0.35745164]
[1732481881545,0.0052559,96715.0,96714.0,0.34893764]
[1732481882668,0.0791,96721.0,96716.0,0.072376]
[1732481883999,0.0791,96721.0,96716.0,0.2517626]
[1732481895707,0.0477564,96717.0,96716.0,0.2517626]
[1732481895915,0.0477564,96717.0,96716.0,0.072376]
[1732481895916,0.1306564,96717.0,96716.0,0.072376]
[1732481896116,0.13430816,96717.0,96716.0,0.072376]
[1732481896336,0.13430816,96717.0,96716.0,0.251768]
[1732481900441,0.05140816,96717.0,96716.0,0.251768]
[1732481900659,0.0477564,96717.0,96716.0,0.251768]
[1732481900873,0.05140779,96717.0,96716.0,0.251768]
[1732481930086,0.00450779,96717.0,96716.0,0.251768]
[1732481935094,0.0008564,96717.0,96716.0,0.251768]
[1732481944085,0.12368853,96717.0,96716.0,0.251768]
[1732481944302,0.12707868,96717.0,96716.0,0.251768]
[1732481945789,0.12707868,96717.0,96716.0,0.072376]
[1732481946478,0.12707868,96717.0,96716.0,0.47969228]
[1732481946686,0.12707868,96717.0,96716.0,0.072376]
[1732481947957,0.12368853,96717.0,96716.0,0.072376]
[1732481952537,0.12454493,96717.0,96716.0,0.072376]
[1732481955563,0.1279337,96717.0,96716.0,0.072376]
[1732481957583,0.1264337,96717.0,96716.0,0.072376]
[1732481958246,0.1264337,96717.0,96716.0,0.34806393]
[1732481958450,0.1264337,96717.0,96716.0,0.072376]
[1732481962401,0.1264337,96717.0,96716.0,0.30206711]
[1732481963044,0.1264337,96717.0,96716.0,0.072376]
[1732481963501,0.1264337,96717.0,96716.0,0.30205109]
[1732481965270,0.1264337,96717.0,96716.0,0.072376]
[1732481965681,0.1264337,96717.0,96716.0,0.30202157]
[1732481967046,0.1264337,96717.0,96716.0,0.072376]
[1732481971270,0.0485337,96717.0,96716.0,0.30202157]
[1732481971711,0.04514493,96717.0,96716.0,0.30202157]
[1732481971928,0.04853184,96717.0,96716.0,0.30202157]
[1732481972155,0.04853184,96717.0,96716.0,0.072376]
[1732481972382,0.00424331,96717.0,96716.0,0.072376]
[1732481974432,0.0008564,96717.0,96716.0,0.072376]
[1732481975941,0.0008564,96717.0,96716.0,0.10631447]
[1732481976812,0.0008564,96717.0,96716.0,0.10802727]
[1732481981332,0.0008564,96717.0,96716.0,0.0740888]
[1732481988671,0.0017536,96721.0,96720.0,0.082712]
[1732481990514,0.00514164,96721.0,96720.0,0.082712]
[1732481992068,0.0017536,96721.0,96720.0,0.082712]
[1732481992506,0.00513354,96721.0,96720.0,0.082712]
[1732481993166,0.0017536,96721.0,96720.0,0.082712]
[1732481993594,0.00513354,96721.0,96720.0,0.082712]
[1732481994455,0.0017536,96721.0,96720.0,0.082712]
[1732481997964,0.0051339,96721.0,96720.0,0.082712]
[1732481998203,0.0051339,96721.0,96718.0,0.082714]
[1732481998422,0.0051339,96721.0,96720.0,0.082712]
[1732481999966,0.0017536,96721.0,96720.0,0.082712]
[1732482000631,0.0017536,96721.0,96718.0,0.082714]
[1732482000858,0.0017536,96721.0,96716.0,0.0017128]
[1732482001087,0.103394,96717.0,96716.0,0.0017128]
[1732482001308,0.103394,96718.0,96716.0,0.0017128]
[1732482001535,0.229791,96720.0,96716.0,0.23161776]
[1732482001780,0.103392,96719.0,96718.0,0.18391886]
[1732482002006,0.1264,96720.0,96716.0,0.23161776]
[1732482002247,0.1264,96720.0,96718.0,0.18392158]
[1732482002950,0.0498,96720.0,96718.0,0.18393492]
[1732482004346,0.153191,96720.0,96718.0,0.18393492]
[1732482004772,0.0498,96720.0,96718.0,0.18383799]
[1732482004994,0.00261,96721.0,96720.0,0.082712]
[1732482012796,0.00261,96721.0,96716.0,0.0017128]
[1732482013030,0.00261,96721.0,96717.0,0.082715]
[1732482013246,0.00261,96721.0,96720.0,0.082712]
[1732482013908,0.00261,96721.0,96718.0,0.082714]
[1732482014127,0.00261,96721.0,96720.0,0.082712]
[1732482015661,0.00261,96721.0,96720.0,0.31251938]
[1732482016654,0.00261,96721.0,96720.0,0.082712]
[1732482017605,0.00261,96721.0,96720.0,0.31254511]
[1732482017820,0.00585137,96721.0,96720.0,0.31254511]
[1732482018046,0.00261,96721.0,96720.0,0.31254511]
[1732482018532,0.00261,96721.0,96720.0,0.082712]
[1732482021245,0.00261,96721.0,96718.0,0.082714]
[1732482021481,0.00261,96721.0,96720.0,0.082712]
[1732482022189,0.0058483,96721.0,96720.0,0.082712]
[1732482022409,0.0058483,96721.0,96720.0,0.31256428]
[1732482022622,0.00261,96721.0,96720.0,0.22985228]
[1732482022844,0.00261,96721.0,96720.0,0.31256428]
[1732482023070,0.0058483,96721.0,96720.0,0.082712]
[1732482024236,0.0058483,96721.0,96719.0,0.22985228]
[1732482024237,0.103391,96720.0,96719.0,0.22985228]
[1732482024679,0.103392,96719.0,96718.0,0.22985228]
[1732482025335,0.25664422,96719.0,96718.0,0.22985228]
[1732482025561,0.231793,96718.0,96717.0,0.0017128]
[1732482025780,0.53580727,96718.0,96717.0,0.0017128]
[1732482025982,0.73904459,96718.0,96717.0,0.0017128]
[1732482028875,0.73704459,96718.0,96717.0,0.0017128]
[1732482029566,0.73904459,96718.0,96717.0,0.0017128]
[1732482031393,0.73704459,96718.0,96717.0,0.0017128]
[1732482032557,0.73904459,96718.0,96717.0,0.0017128]
[1732482037830,0.73990119,96718.0,96717.0,0.0017128]
[1732482039602,0.76101584,96718.0,96717.0,0.0017128]
[1732482052021,0.91101584,96718.0,96717.0,0.0017128]
[1732482053283,0.93401584,96718.0,96717.0,0.0017128]
[1732482054646,0.93401584,96718.0,96698.0,0.0017122]
[1732482054647,0.402,96699.0,96698.0,0.0017122]
[1732482054858,0.73342727,96699.0,96698.0,0.0017122]
[1732482055065,1.04693614,96699.0,96698.0,0.0017122]
[1732482055277,1.04635034,96699.0,96698.0,0.0017122]
[1732482055487,1.19635034,96699.0,96698.0,0.0017122]
[1732482058574,1.23119107,96699.0,96698.0,0.0017122]
[1732482058793,1.19635034,96699.0,96698.0,0.0017122]
[1732482060119,1.2302765,96699.0,96698.0,0.0017122]
[1732482060332,1.0302765,96699.0,96698.0,0.0017122]
[1732482060573,1.2302765,96699.0,96698.0,0.0017122]
[1732482063475,1.25082327,96699.0,96698.0,0.0017122]
[1732482072702,1.25168007,96699.0,96698.0,0.0017122]
[1732482080305,0.9537191,96699.0,96698.0,0.0017122]
[1732482080533,0.41637994,96699.0,96698.0,0.0017122]
[1732482081023,0.41637994,96699.0,96698.0,0.0844432]
[1732482081250,0.41637994,96699.0,96698.0,0.1646432]
[1732482081696,0.41305107,96699.0,96698.0,0.1646432]
[1732482082157,0.4159794,96699.0,96698.0,0.1646432]
[1732482083557,0.4159794,96699.0,96698.0,0.0819122]
[1732482083793,0.5193924,96699.0,96698.0,0.0819122]
[1732482084291,0.5193924,96699.0,96698.0,0.0017122]
[1732482084984,0.5203924,96699.0,96698.0,0.0017122]
[1732482085677,0.5193924,96699.0,96698.0,0.0017122]
[1732482087671,0.5203924,96699.0,96698.0,0.0017122]
[1732482087883,0.5193924,96699.0,96698.0,0.0017122]
[1732482088575,0.7208066,96699.0,96698.0,0.0017122]
[1732482088827,0.7193924,96699.0,96698.0,0.0017122]
[1732482089060,0.7203924,96699.0,96698.0,0.0017122]
[1732482090020,0.9203924,96699.0,96698.0,0.0017122]
[1732482090484,0.9208066,96699.0,96698.0,0.0017122]
[1732482090713,0.9682066,96699.0,96698.0,0.0017122]
[1732482090956,0.9677924,96699.0,96698.0,0.0017122]
[1732482091198,0.9682066,96699.0,96698.0,0.0017122]
[1732482091660,0.9677924,96699.0,96698.0,0.0017122]
[1732482092319,0.9203924,96699.0,96698.0,0.0017122]
[1732482094116,0.9208066,96699.0,96698.0,0.0017122]
[1732482094347,0.9208066,96699.0,96659.0,0.082765]
[1732482094348,0.2,96660.0,96659.0,0.082765]
[1732482094580,0.202,96660.0,96659.0,0.082765]
[1732482094820,0.20491787,96660.0,96659.0,0.082765]
[1732482096196,0.40491787,96660.0,96659.0,0.082765]
[1732482097366,0.40491787,96660.0,96659.0,0.204065]
[1732482097590,0.40491787,96660.0,96659.0,0.1213]
[1732482098977,0.40491787,96660.0,96659.0,0.204065]
[1732482099416,0.402,96660.0,96659.0,0.204065]
[1732482099633,0.402,96660.0,96659.0,0.1213]
[1732482099844,0.40490749,96660.0,96659.0,0.1213]
[1732482101425,0.40490749,96660.0,96659.0,0.193719]
[1732482101870,0.40490749,96660.0,96659.0,0.1213]
[1732482102350,0.40490749,96660.0,96659.0,0.193719]
[1732482102765,0.402,96660.0,96659.0,0.193719]
[1732482103240,0.40490795,96660.0,96659.0,0.193719]
[1732482107498,0.40490795,96660.0,96659.0,0.1945758]
[1732482110401,0.00290795,96660.0,96659.0,0.1945758]
[1732482110622,0.00290795,96660.0,96659.0,0.2175758]
[1732482110837,0.2,96662.0,96661.0,0.095418]
[1732482111068,0.2,96662.0,96661.0,0.222718]
[1732482112008,0.202,96662.0,96661.0,0.222718]
[1732482113528,0.202,96662.0,96661.0,0.2561841]
[1732482114254,0.20490675,96662.0,96661.0,0.2561841]
[1732482114699,0.00490675,96662.0,96661.0,0.2561841]
[1732482114916,0.20490675,96662.0,96661.0,0.2561841]
[1732482115127,0.00490675,96662.0,96661.0,0.2561841]
[1732482115364,0.20490675,96662.0,96661.0,0.2561841]
[1732482115626,0.00290675,96662.0,96661.0,0.2561841]
[1732482116320,0.002,96663.0,96662.0,0.095417]
[1732482117000,0.2,96665.0,96662.0,0.095417]
[1732482117001,0.202,96665.0,96664.0,0.072415]
[1732482117912,0.00490675,96665.0,96664.0,0.072415]
[1732482118163,0.20490675,96665.0,96664.0,0.072415]
[1732482118611,0.00490675,96665.0,96664.0,0.072415]
[1732482119126,0.00290675,96665.0,96664.0,0.072415]
[1732482119354,0.00290675,96665.0,96664.0,0.222715]
[1732482119577,0.4,96680.0,96676.0,0.154606]
[1732482119814,0.2,96680.0,96679.0,0.072404]
[1732482120323,0.4,96680.0,96679.0,0.072404]
[1732482120758,0.2,96680.0,96679.0,0.072404]
[1732482120967,0.4,96680.0,96679.0,0.072404]
[1732482121186,0.402,96680.0,96679.0,0.072404]
[1732482121635,0.40491077,96680.0,96679.0,0.072404]
[1732482122035,0.20491077,96680.0,96679.0,0.10599292]
[1732482122673,0.00491077,96680.0,96679.0,0.10599292]
[1732482122886,0.00291077,96680.0,96679.0,0.10599292]
[1732482124264,0.20491077,96680.0,96679.0,0.10599292]
[1732482125536,0.00291077,96680.0,96679.0,0.10599292]
[1732482125750,0.00291077,96680.0,96679.0,0.25629292]
[1732482126184,0.2008568,96699.0,96698.0,0.07239]
[1732482126398,0.0008568,96699.0,96698.0,0.07239]
[1732482127125,0.0008568,96699.0,96698.0,0.09539]
[1732482128452,0.0008568,96699.0,96698.0,0.12929585]
[1732482129844,0.00376757,96699.0,96698.0,0.12929585]
[1732482130064,0.00576757,96699.0,96698.0,0.10629585]
[1732482130982,0.20576757,96699.0,96698.0,0.07239]
[1732482135230,0.40576757,96699.0,96698.0,0.07239]
[1732482136592,0.40376757,96699.0,96698.0,0.07239]
[1732482136819,0.20376757,96699.0,96698.0,0.07239]
[1732482137065,0.20576757,96699.0,96698.0,0.07239]
[1732482137991,0.20376757,96699.0,96698.0,0.07239]
[1732482138230,0.20376757,96699.0,96698.0,0.17329]
[1732482139410,0.00376757,96699.0,96698.0,0.17329]
[1732482139648,0.20376757,96699.0,96698.0,0.17329]
[1732482139887,0.2008568,96699.0,96698.0,0.17329]
[1732482140109,0.0008568,96699.0,96698.0,0.17329]
[1732482140319,0.2008568,96699.0,96698.0,0.17329]
[1732482141004,0.0008568,96699.0,96698.0,0.17329]
[1732482141272,0.2008568,96699.0,96698.0,0.17329]
[1732482142186,0.0008568,96699.0,96698.0,0.17329]
[1732482142419,0.2008568,96699.0,96698.0,0.17329]
[1732482143318,0.2037944,96699.0,96698.0,0.17329]
[1732482144374,0.0037944,96699.0,96698.0,0.27530427]
[1732482144582,0.0037944,96699.0,96698.0,0.47270427]
[1732482144821,0.0008568,96699.0,96698.0,0.47270427]
[1732482145674,0.0008568,96699.0,96698.0,0.37069]
[1732482146139,0.0008568,96699.0,96698.0,0.32329]
[1732482146384,0.0008568,96699.0,96698.0,0.09539]
[1732482154650,0.0028568,96699.0,96698.0,0.09539]
[1732482155076,0.0008568,96699.0,96698.0,0.09539]
[1732482155342,0.00379794,96699.0,96698.0,0.09539]
[1732482156687,0.2,96704.0,96703.0,0.072386]
[1732482158254,0.20313027,96704.0,96703.0,0.072386]
[1732482160551,0.00313027,96704.0,96703.0,0.10646289]
[1732482160960,0.2,96708.0,96703.0,0.17884889]
[1732482161176,0.2,96708.0,96707.0,0.072383]
[1732482161388,0.2,96709.0,96708.0,0.072382]
[1732482161863,0.20314096,96709.0,96708.0,0.072382]
[1732482163139,0.20314096,96709.0,96708.0,0.095382]
[1732482164000,0.20399856,96709.0,96708.0,0.095382]
[1732482169212,0.20420533,96709.0,96708.0,0.095382]
[1732482171926,0.52560533,96709.0,96708.0,0.072382]
[1732482174550,0.44930533,96709.0,96708.0,0.072382]
[1732482175671,0.24930533,96709.0,96708.0,0.072382]
[1732482177172,0.44930533,96709.0,96708.0,0.072382]
[1732482178937,0.20420533,96709.0,96708.0,0.072382]
[1732482179155,0.20420533,96709.0,96708.0,0.095382]
[1732482180904,0.00420533,96709.0,96708.0,0.095382]
[1732482181119,0.0008576,96709.0,96708.0,0.095382]
[1732482181382,0.0008576,96709.0,96708.0,0.0964159]
[1732482182027,0.2,96720.0,96717.0,0.072376]
[1732482182459,0.00421123,96718.0,96717.0,0.072376]
[1732482182674,0.00105102,96718.0,96717.0,0.072376]
[1732482182901,0.00105102,96718.0,96717.0,0.30431535]
[1732482183359,0.00090974,96718.0,96717.0,0.072376]
[1732482183593,0.00090974,96718.0,96717.0,0.30432406]
[1732482183804,0.00090974,96718.0,96717.0,0.072376]
[1732482184666,0.00090974,96718.0,96717.0,0.095376]